Cogmind - Beta 9.4 @@@ ROGUE MODE // 2020.02.19 @ 19:51:43 Player: retoid Result: Destroyed by Y-45 Defender with Beam Rifle Performance ------------- Evolutions (2) 1000 Regions Visited (5) 1000 Robots Destroyed (13) 65 Value Destroyed (142) 142 Prototype IDs (3) 60 Alien Tech Used (0) 0 Bonus (35) 35 TOTAL SCORE: 2302 Bonus ------- Follower Combat Kills 35 Cogmind --------- Core Integrity 0/550 Matter 233/300 Energy 100/100 System Corruption 0% Temperature Cool (27) Movement Core (100) Ox1 Location -8/Storage Parts ------- > --- POWER (2) -------- (None) > --- PROPULSION (3) --- (None) > --- UTILITY (4) ------ Small Storage Unit Improved Signal Interpreter Utility Shielding > --- WEAPON (2) ------- (None) > --- INVENTORY (6) ---- (None) Peak State ------------ > --- POWER ------------ Light Ion Engine Light Ion Engine > --- PROPULSION ------- Flight Unit Flight Unit Cesium-ion Thruster > --- UTILITY ---------- Small Storage Unit Advanced Weight Redist. System Improved Signal Interpreter Utility Shielding > --- WEAPON ----------- Advanced Beam Cannon Light Assault Rifle > --- INVENTORY -------- Light Ion Engine Deuterium Engine Flight Unit Improved Flight Unit Improved Sensor Array [Rating: 19] Favorites ----------- Power Light Ion Engine Engine Light Ion Engine Propulsion Flight Unit Leg Aluminum Leg Flight Unit Flight Unit Utility Small Storage Unit Device Advanced Weight Redist. System Storage Small Storage Unit Processor Improved Signal Interpreter Protection Utility Shielding Weapon Light Assault Rifle Energy Gun Medium Laser Energy Cannon Advanced Beam Cannon Ballistic Gun Light Assault Rifle Build | -11 -10 -10 -9 -8 -8 ------- Run | Scr Mat Min Mat Mat Sto Slots Evolved 4 | . . . 2 2 . Power 1 | . . . . 1 . Propulsion 1 | . . . 1 . . Utility 2 | . . . 1 1 . Weapon . | . . . . . . Parts Attached 44 | 5 3 9 4 13 10 Power 9 | 1 1 1 . 3 3 Engine 9 | 1 1 1 . 3 3 Core . | . . . . . . Reactor . | . . . . . . Propulsion 11 | 2 2 3 1 1 2 Treads . | . . . . . . Leg 2 | 2 . . . . . Wheel . | . . . . . . Hover . | . . . . . . Flight 9 | . 2 3 1 1 2 Utility 8 | 1 . 1 2 2 2 Device 3 | . . . . 1 2 Storage 2 | 1 . . . 1 . Processor 1 | . . . 1 . . Hackware . | . . . . . . Protection 2 | . . 1 1 . . Artifact . | . . . . . . Weapon 16 | 1 . 4 1 7 3 Energy Gun 6 | . . 3 1 . 2 Energy Cannon 4 | . . . . 4 . Ballistic Gun 6 | 1 . 1 . 3 1 Ballistic Cannon . | . . . . . . Launcher . | . . . . . . Special Weapon . | . . . . . . Impact Weapon . | . . . . . . Slashing Weapon . | . . . . . . Piercing Weapon . | . . . . . . Special Melee Weapon . | . . . . . . Unidentified Prototypes 3 | . . . . 1 2 Parts Lost 21 | . . 5 . 1 15 Power 5 | . . 1 . . 4 Propulsion 8 | . . 3 . . 5 Utility 2 | . . . . . 2 Weapon 6 | . . 1 . 1 4 Highest Loss Streak 14 | . . 4 . 1 14 Average Slot Usage (%) 79 | . 70 68 85 90 84 Engine 12 | . 14 12 11 11 11 Leg 5 | . 23 . . . . Flight 20 | . 3 22 33 27 24 Device 1 | . . . . 1 6 Storage 12 | . 14 14 11 15 9 Processor 5 | . . . 8 9 9 Protection 4 | . . 2 . 9 9 Energy Gun 3 | . . 4 10 8 . Energy Cannon 1 | . . . . 1 6 Ballistic Gun 10 | . 14 14 11 7 7 Naked Turns . | . . . . . . Heaviest Build 17 | 8 8 8 11 17 16 Greatest Support 23 | 20 20 8 12 23 23 Greatest Overweight (x) 2 | 1 2 1 . . 1 Average Overweight (x) . | . . . . . . Largest Inventory Capacity 6 | 6 6 6 6 6 6 Average Capacity 5 | 5 6 6 6 6 6 Most Carried 6 | 3 5 6 4 6 6 Average Carried 3 | 1 2 4 3 5 4 Final Capacity 6 | 6 6 6 6 6 6 Final Carried 5 | 2 5 5 3 5 . Class Distribution -------------------- 59% | Scavenger-Mutant 40% | Mutant Dominant Class ---------------- Mutant | -10/Materials Mutant | -10/Mines Scavenger-Mutant | -9/Materials Scavenger-Mutant | -8/Materials Scavenger-Mutant | -8/Storage Resources | -11 -10 -10 -9 -8 -8 ----------- Run | Scr Mat Min Mat Mat Sto Matter Collected 518 | 197 55 110 34 . 122 Remotely . | . . . . . . Salvage Created 212 | . 38 140 34 . . Parts 26 | . 4 17 5 . . Haulers Intercepted . | . . . . . . Recyclers Shooed . | . . . . . . Parts Field Recycled . | . . . . . . Retrieved Matter . | . . . . . . Parts Self-Destructed . | . . . . . . Prevented . | . . . . . . Kills | -11 -10 -10 -9 -8 -8 ------- Run | Scr Mat Min Mat Mat Sto Combat Hostiles Destroyed 10 | . 2 8 . . . Guns 8 | . 2 6 . . . AOE 2 | . . 2 . . . Classes Destroyed 4 | . 1 1 2 . . Worker 1 | . . . 1 . . Builder 1 | . . 1 . . . Watcher 1 | . . . 1 . . Swarmer 10 | . 2 8 . . . Best Kill Streak 3 | . 2 3 1 . . Combat Bots Only 3 | . 2 3 . . . Max Kills in Single Turn 2 | . 1 2 1 . . Gunslinging . | . . . . . . Exploded 2 | . . 2 . . . Melee . | . . . . . . Uniques/NPCs Destroyed . | . . . . . . Combat | -11 -10 -10 -9 -8 -8 -------- Run | Scr Mat Min Mat Mat Sto Damage Taken 1861 | . 73 354 . 116 1318 Core 634 | . . 79 . 32 523 Absorbed by Shields . | . . . . . . Core Remaining (%) 89 | 100 . 68 100 . . Volleys Fired 58 | . 11 29 3 1 14 Largest 2 | . 1 2 2 2 2 Hottest 118 | . 20 70 70 118 88 Shots Fired 80 | . 11 40 6 2 21 Gun 74 | . 11 40 6 1 16 Cannon 6 | . . . . 1 5 Launcher . | . . . . . . Special . | . . . . . . Kinetic 50 | . 11 29 3 . 7 Thermal 24 | . . 5 3 2 14 Explosive . | . . . . . . Electromagnetic 6 | . . 6 . . . Robot Hit Streak 11 | . 2 6 4 6 11 Robot Miss Streak 6 | . 2 6 . . 1 Penetration Max . | . . . . . . Secondary Targets 1 | . . 1 . . . Max Gunslinging Chain 1 | . . 1 . . . Shots Hit Robots 46 | . 5 23 4 2 12 Core Hits 18 | . 2 13 2 . 1 Critical Hits 2 | . . 2 . . . Critical Kills 1 | . . 1 . . . Critical Parts Destroyed 1 | . . 1 . . . Melee Attacks . | . . . . . . Impact . | . . . . . . Slashing . | . . . . . . Piercing . | . . . . . . Sneak Attacks . | . . . . . . Combat Hostiles . | . . . . . . Follow-up Attacks . | . . . . . . Damage Inflicted 583 | . 49 277 45 33 179 Guns 472 | . 49 186 45 13 179 Cannons 20 | . . . . 20 . Explosions 91 | . . 91 . . . Melee . | . . . . . . Ramming . | . . . . . . Kinetic 222 | . 49 151 7 . 15 Thermal 339 | . . 104 38 33 164 Explosive . | . . . . . . Electromagnetic 22 | . . 22 . . . Impact . | . . . . . . Slashing . | . . . . . . Piercing . | . . . . . . Highest Corruption . | . . . . . . Average Corruption . | . . . . . . Corruption Purged . | . . . . . . Overload Shots . | . . . . . . Overflow Damage 20 | . . 20 . . . Projectiles . | . . . . . . Explosions 20 | . . 20 . . . Melee . | . . . . . . Knockbacks . | . . . . . . Impact . | . . . . . . Kinetic . | . . . . . . Secondary . | . . . . . . Self-Inflicted Damage 4 | . . 4 . . . Shots 1 | . . 1 . . . Rammed . | . . . . . . Targets Rammed . | . . . . . . Kicked . | . . . . . . Crushed . | . . . . . . Highest Temperature 175 | . . 113 60 63 175 Average Temperature 51 | . . 34 25 30 72 Received Heat Transfer 495 | . . . . 54 441 Siege Activations . | . . . . . . Robots Corrupted . | . . . . . . Combat Hostiles . | . . . . . . Parts Fried . | . . . . . . Impact Corruptions . | . . . . . . Robots Melted . | . . . . . . Combat Hostiles . | . . . . . . Parts Melted . | . . . . . . Heat Transferred 605 | . . 87 111 74 333 Parts Sabotaged . | . . . . . . Parts Stolen . | . . . . . . Parts Stripped . | . . . . . . Power Chain Reactions 1 | . . 1 . . . Missiles Intercepted . | . . . . . . Alert | -11 -10 -10 -9 -8 -8 ------- Run | Scr Mat Min Mat Mat Sto Peak Influence 206 | . 55 206 133 100 151 Average Influence 70 | . 15 153 85 72 65 Maximum Alert Level 1 | . . 1 . . . Low Security (%) 98 | 100 100 93 100 100 100 Level 1 1 | . . 6 . . . Level 2 . | . . . . . . Level 3 . | . . . . . . Level 4 . | . . . . . . Level 5 . | . . . . . . High Security . | . . . . . . Max Security . | . . . . . . Squads Dispatched 6 | . . . 2 1 3 Investigation 1 | . . . . . 1 Extermination . | . . . . . . Reinforcement 3 | . . . 2 1 . Assault 2 | . . . . . 2 Garrison . | . . . . . . Intercept . | . . . . . . Construction Impeded . | . . . . . . Haulers Reinforced . | . . . . . . Stealth | -11 -10 -10 -9 -8 -8 --------- Run | Scr Mat Min Mat Mat Sto Distress Signals 1 | . . . 1 . . Communications Jammed . | . . . . . . Distress Signals . | . . . . . . Times Spotted 39 | . 5 11 1 7 15 Peak Tracking Total 12 | . 5 3 1 6 12 Tactical Retreats 3 | . . 1 . 1 1 Traps | -11 -10 -10 -9 -8 -8 ------- Run | Scr Mat Min Mat Mat Sto Traps Triggered . | . . . . . . Indirectly . | . . . . . . Trap Hack Attempts . | . . . . . . Triggered . | . . . . . . Disarmed 3 | . . . . . 3 Reprogrammed . | . . . . . . Reused . | . . . . . . Traps Extracted . | . . . . . . Installed . | . . . . . . Triggered . | . . . . . . Machines | -11 -10 -10 -9 -8 -8 ---------- Run | Scr Mat Min Mat Mat Sto Machines Disabled 2 | . . 1 . . 1 Max in Single Turn 1 | . . 1 . . 1 Machines Sabotaged . | . . . . . . Garrisons Compromised . | . . . . . . Overloaded Fab Kills . | . . . . . . Fab Network Shutdowns . | . . . . . . Hacking | -11 -10 -10 -9 -8 -8 --------- Run | Scr Mat Min Mat Mat Sto Machines Accessed 5 | . 1 . 1 . 3 Terminals 4 | . 1 . 1 . 2 Fabricators . | . . . . . . Repair Stations 1 | . . . . . 1 Recycling Units . | . . . . . . Scanalyzers . | . . . . . . Garrison Access . | . . . . . . Total Hacks 13 | . 3 . 3 . 7 Successful 6 | . 1 . . . 5 Failed 7 | . 2 . 3 . 2 Catastrophic . | . . . . . . Database Lockouts . | . . . . . . Manual . | . . . . . . Terminals 11 | . 3 . 3 . 5 Fabricators . | . . . . . . Repair Stations 2 | . . . . . 2 Recycling Units . | . . . . . . Scanalyzers . | . . . . . . Garrison Access . | . . . . . . Terminal Hacks 4 | . 1 . . . 3 Alert Level 1 | . . . . . 1 Disarm Traps 1 | . . . . . 1 Recall Reinforcements 1 | . . . . . 1 Zone Layout 1 | . 1 . . . . Fabricator Hacks . | . . . . . . Repair Station Hacks 2 | . . . . . 2 Scan Component 1 | . . . . . 1 Repair 1 | . . . . . 1 Recycling Unit Hacks . | . . . . . . Scanalyzer . | . . . . . . Garrison Access Hacks . | . . . . . . Unauthorized Hacks . | . . . . . . Terminals . | . . . . . . Fabricators . | . . . . . . Repair Stations . | . . . . . . Recycling Units . | . . . . . . Scanalyzers . | . . . . . . Garrison Access . | . . . . . . Data Cores Recovered . | . . . . . . Used . | . . . . . . Hacking Detections 5 | . 1 . 1 . 3 Full Trace Events 1 | . . . . . 1 Feedback Events . | . . . . . . Feedback Blocked . | . . . . . . Robot Schematics Acquired . | . . . . . . Robots Built . | . . . . . . Matter . | . . . . . . Time . | . . . . . . Total Robot Build Rating . | . . . . . . Part Schematics Acquired . | . . . . . . Parts Built . | . . . . . . Matter . | . . . . . . Time . | . . . . . . Total Part Build Rating . | . . . . . . Parts Repaired 1 | . . . . . 1 Time 38 | . . . . . 38 Parts Recycled . | . . . . . . Recycled Matter . | . . . . . . Retrieved Matter . | . . . . . . Retrieved Components . | . . . . . . Parts Scanalyzed . | . . . . . . Part Schematics Acquired . | . . . . . . Parts Damaged . | . . . . . . Bothacking | -11 -10 -10 -9 -8 -8 ------------ Run | Scr Mat Min Mat Mat Sto Used RIF Installer . | . . . . . . Robots Hacked . | . . . . . . Non-combat . | . . . . . . Combat . | . . . . . . Robot Hacks Applied . | . . . . . . Relay Couplers Released . | . . . . . . Robots Rewired . | . . . . . . Allies Hacked . | . . . . . . Hacks Repelled . | . . . . . . Allies | -11 -10 -10 -9 -8 -8 -------- Run | Scr Mat Min Mat Mat Sto Total Allies 2 | . . . . . 2 Largest Group 2 | . . . . . 2 Highest-Rated Group 62 | . . . . . 62 Highest-Rated Ally 31 | . . . . . 31 Total Orders . | . . . . . . Ally Attacks 8 | . . . . . 8 Total Damage 147 | . . . . . 147 Kills 1 | . . . . . 1 Allies Corrupted . | . . . . . . Allies Melted . | . . . . . . Intel | -11 -10 -10 -9 -8 -8 ------- Run | Scr Mat Min Mat Mat Sto Robot Analysis Total . | . . . . . . Derelict Logs Recovered 2 | . . 2 . . . Drone Launches . | . . . . . . Drone Recoveries . | . . . . . . Exploration | -11 -10 -10 -9 -8 -8 ------------- Run | Scr Mat Min Mat Mat Sto Turns Passed 836 | 47 174 147 117 135 216 Spaces Moved 1093 | 34 152 170 254 224 259 Core 14 | 11 1 2 . . . Treads . | . . . . . . Legs 126 | 23 103 . . . . Wheels . | . . . . . . Hover . | . . . . . . Flight 953 | . 48 168 254 224 259 Fastest Speed 34 | 50 37 37 34 34 34 Average Speed 45 | 100 94 38 34 34 34 Slowest Speed 150 | 120 150 120 34 34 109 Overloaded Moves . | . . . . . . Propulsion Burnouts . | . . . . . . Robots Hopped 7 | . . . 1 3 3 Cave-ins Triggered . | . . . . . . Exploration Rate (%) 23 | 3 20 41 28 15 35 Regions Visited 5 Branch Regions 2 Pre-discovered Areas 1 | . . 1 . . . Known Exits Taken 2 | . . . 1 1 . Unknown Exits Taken 3 | 1 1 1 . . . Scrap Searched . | . . . . . . Spaces Dug . | . . . . . . Terrain Destroyed 3 | . . 3 . . . Melee . | . . . . . . Projectile . | . . . . . . AOE 3 | . . 3 . . . Actions | -11 -10 -10 -9 -8 -8 --------- Run | Scr Mat Min Mat Mat Sto Total 1363 | 47 174 219 277 282 364 Wait 124 | 2 . . 16 27 79 Move 1074 | 33 151 169 251 217 253 Hop 7 | . . . 1 3 3 Pick Up 35 | 7 6 7 2 9 4 Fast Attach . | . . . . . . Attach 42 | 5 3 9 4 11 10 Detach 11 | . . 3 . 7 1 Swap 2 | . . . . 2 . Drop 10 | . 3 2 . 5 . Fire 58 | . 11 29 3 1 14 Melee . | . . . . . . Ram . | . . . . . . Kick . | . . . . . . Crush . | . . . . . . Escape Stasis . | . . . . . . Rewire . | . . . . . . Trap . | . . . . . . Miscellaneous . | . . . . . . Route ------- -11/Scrapyard -10/Materials -10/Mines -9/Materials -8/Materials -8/Storage History --------- Turn | Location | Event 2 | -11/Scrapyard | Met Revision 17 7 | -11/Scrapyard | Discovered new exit (range 15) 48 | -11/Scrapyard | Entered Materials 204 | -10/Materials | Discovered new exit (range 16) 222 | -10/Materials | Entered Mines 233 | -10/Mines | Learned Materials emergency access door positions 246 | -10/Mines | Met a Derelict bent on vengeance 294 | -10/Mines | Lost 4 parts (1p2n1w) 317 | -10/Mines | Build established: Mutant 365 | -10/Mines | Discovered new exit (range 7) 369 | -10/Mines | Entered Materials 369 | -9/Materials | Evolved 2 slots: Propulsion x1, Utility x1 463 | -9/Materials | Discovered new exit (range 15) 485 | -9/Materials | Identified exit to Materials 486 | -9/Materials | Entered another Materials area 486 | -8/Materials | Evolved 2 slots: Power x1, Utility x1 536 | -8/Materials | Discovered new exit (range 16) 619 | -8/Materials | Identified exit to Storage 621 | -8/Materials | Entered Storage 642 | -8/Storage | Build established: Scavenger-Mutant 685 | -8/Storage | Repaired Adv. Weight Redist. System 783 | -8/Storage | Met a pair of Derelict thieves 817 | -8/Storage | Core integrity fell below 50% 830 | -8/Storage | Core integrity fell below 20% 837 | -8/Storage | Destroyed by Y-45 Defender with Beam Rifle Last Messages --------------- 00810_ Acquired 11 matter. 00810_ Identified Imp. Flight Unit. 00810_ K-01 Serf collects debris. 00811_ Flight Unit destroyed. 00811_ K-01 Serf destroyed. 00812_ Acquired 10 matter. 00812_ Acquired 48 matter. 00812_ K-01 Serf collects debris. 00814_ Acquired Particle Gun. 00815_ Flight Unit destroyed. 00815_ K-01 Serf collects debris. 00821_ Particle Gun destroyed. 00821_ K-01 Serf cleans the Heavy Doors. 00822_ K-01 Serf collects debris. 00824_ K-01 Serf cleans the Heavy Doors. 00825_ Deuterium Engine destroyed. 00827_ K-01 Serf collects debris. 00827_ K-01 Serf cleans the Heavy Doors. 00837_ Imp. Sensor Array destroyed. 00837_ Imp. Flight Unit destroyed. Map ----- +----------------------------------------------------+ | | | | | | | | | | | | | | | ????????????????????????????????????????????????? | | ?????????????????????????????????????#########??? | | ?????????????????????????????????????# #??? | | ?????????????????????????????????????# #??? | | ?????????????????????????????????????# #??? | | ?????????????????????????????????????# #??? | | ?????????????????????????????????????# #??? | | ?????????????????????????????????????# #??? | | ?????????????????????????????????????# #??? | | ?????????????????????????????????????# #??? | | ?????????????????????????????????????# #??? | | ?????????????????# ??????????????????# #??? | | ?????????????????+ ??????????######## #### | | ?????????????????# #####+#### #####+#### | | ?????????????????# "" | | ?????????????????# ? T | | ?????????????????# ?=?? | | ???????????????????#######g#### #####+#### | | ??????????????????????##@Y*]#?######## #### | | ??????????????????????#TgYk*#????????# T#?? | | ?????????????????????###"s"##????????# """ ##?? | | ?????????????????????# !k=!#????????# """ #??? | | ?????????????????????#== #????????# """ #??? | | ?????????????????????# = ==#????????# """ #??? | | ?????????????????????#= = =#???????? """ #??? | | ?????????????????????########???????## ??? #### | | ?????????????????????????????????????# ??? + | | ?????????????????????????????????????# ????# | | ?????????????????????????????????????####????# | | ????????????????????????????????????????? | | ??????????????????????????????????????? | | ???????????????????????????????????????? | | ????????????????????????????????????????#/##### | | ??????????????????????????????????????????????# | | ??????????????????????????????????????????????+ | | ??????????????????????????????????????????????### | | ????????????????????????????????????????????????? | | ????????????????????????????????????????????????? | | ????????????????????????????????????????????????? | | ????????????????????????????????????????????????? | | ????????????????????????????????????????????????? | | ????????????????????????????????????????????????? | | ????????????????????????????????????????????????? | +----------------------------------------------------+ Best States ------------- Heat Dissipation 31 Energy Generation 15 Energy Capacity 275 Matter Stores 300 Matter Capacity 450 Sight Range 16 Robot Scan Range 13 Terrain Scan Density 10 Additional Mass Support 9 Utility Shielding 33 Evasion (%) 63 Item Schematics ----------------- None Robot Schematics ------------------ None Fabricated ------------ Nothing Alien Tech Used ----------------- None Achievements -------------- None Challenges ------------ None Game ------ Seed GatlingOpticalBooster Manual? 0 Play Time 00:48:09 Cumulative 11.2 hours Start 2020.02.15 @ 13:19:04 End 2020.02.19 @ 19:51:43 Sessions 2 Manual Loads 0 Difficulty Rogue Special Mode None Game No. 6 Rogue 6 Adventurer 0 Explorer 0 Win Type - Total 0 Types 0/0/0/0/0/0/0 Lore% 11 Gallery% 12 Achievement% 10 Wizard Run 0 Options --------- ASCII 0 Keyboard 0 Movement Mouse Keybinds 0 Fullscreen 1 Font 18/SmallcapsGlow Map View 76x50 Tactical HUD 1 Map Filters NONE Filters NONE Steam 1 RUN: 60fe091e-07d4-4fb2-96ff-df4132be3fd4